{"text_format":"1","workbook":"xlsx","n_sheets":5,"sheets":["（作成要領）","表紙－入力","内訳－入力","表紙－手書き用","内訳－手書き用"],"not_rendered":{"charts":0,"images":1,"macros":0,"external_links":0,"defined_names":0,"comments":0,"pivot_tables":0},"unopened":[],"bounds":{"document_bytes":16777216,"sheet_cells":100000,"rows_first":2000,"rows_last":500,"rows_between":2000,"halvings":0,"cell_chars":16384,"cell_head_chars":4096},"cells_cut":0,"cells_raw":0,"read":"whole","date_system":"1900"}

{"sheet":"（作成要領）","index":0,"n_rows":60,"n_cols":46,"rows_kept":60,"cut":false,"hidden":false,"merged":[[54,43,54,45],[54,40,54,42],[54,4,54,8],[54,10,54,12],[54,14,54,16],[54,18,54,20],[54,30,54,32],[54,37,54,39],[52,0,52,3],[52,11,52,14],[52,21,52,26],[54,0,54,2],[54,21,54,23],[54,24,54,26],[59,3,59,6],[59,7,59,10],[59,12,59,15],[51,0,51,3],[21,1,21,7],[54,27,54,29],[44,0,44,3],[45,0,45,3],[46,0,46,3],[46,21,47,24],[47,0,47,3],[51,28,51,32],[49,0,49,3],[48,0,48,3],[48,21,48,32],[49,21,49,23],[50,0,50,3],[50,21,50,23],[37,28,37,33],[35,0,35,3],[35,6,35,12],[35,23,35,26],[35,29,35,32],[42,0,43,3],[42,11,42,14],[42,15,42,19],[42,21,42,28],[39,15,39,20],[39,22,39,27],[39,28,39,33],[39,34,39,39],[51,21,51,23],[38,15,38,20],[38,22,38,27],[38,28,38,33],[38,34,38,39],[38,40,38,45],[36,28,36,33],[36,34,36,39],[36,40,36,45],[39,40,39,45],[37,0,37,3],[37,6,37,12],[37,14,37,21],[37,22,37,27],[36,0,36,5],[35,35,35,38],[35,41,35,44],[36,6,36,12],[36,15,36,20],[36,22,36,27],[37,34,37,39],[37,40,37,45],[32,36,32,45],[28,33,29,45],[32,0,32,3],[32,4,33,18],[32,23,32,31],[33,0,33,3],[30,33,30,45],[31,20,32,22],[31,23,31,31],[31,33,31,44],[29,8,30,8],[29,9,30,9],[29,20,30,22],[29,5,30,5],[29,6,30,6],[29,7,30,7],[28,23,28,31],[29,23,30,31],[33,33,33,35],[32,33,32,35],[33,37,33,45],[26,0,27,1],[26,3,27,3],[26,4,27,4],[26,5,27,5],[26,6,27,6],[26,7,27,7],[28,20,28,22],[29,0,30,1],[29,2,30,2],[29,3,30,3],[29,4,30,4],[26,38,26,45],[27,23,27,24],[25,27,26,30],[25,31,26,31],[27,33,27,45],[25,23,26,25],[25,26,26,26],[26,34,26,37],[25,11,25,18],[25,20,26,22],[27,20,27,22],[27,25,27,26],[27,28,27,29],[27,30,27,31]]}
[]
[]
[null,null,null,"・「契約用」と「契約外用」の様式がありますので、発注担当者に確認して作成して下さい。"]
[null,null,null,null,null,"（工事請負に関係のないものは、「契約外」です。）"]
[]
[null,null,null,"・太枠での表示内のみに記入して下さい。"]
[]
[]
[null,null,null,"・入力したものを印刷・貴社押印して、提出して下さい。"]
[]
[null,null,null,"　　（手書きでも結構です。『手書き用』を印刷・コピーして作成してください。）"]
[]
[]
[]
[null,null,null,"取引先コード等、不明な点がございましたら、ご連絡下さい。"]
[]
[null,null,null,"　　株式会社　セノオ　　　Ｔｅｌ ： ０８８－６６４－６５５５"]
[]
[]
[]
[]
[null,"入 力 例"]
[]
[null,null,null,"株式会社 セノオ　御中",null,null,null,null,null,null,null,null,null,null,null,null,null,"請　　求　　書",null,null,null,null,null,null,null,null,"（　契　約　用　）",null,null,null,null,null,null,null,null,null,null,null,null,null,null,null,null,null,null,"様式2014.04"]
[]
["下記の通り請求致します。",null,null,null,null,null,null,null,null,null,null,"請 求 年 月 日",null,null,null,null,null,null,null,null,"振込口座",null,null,"徳島",null,null,"銀行","渭東",null,null,null,"店",null," 請求者（住所・氏名）"]
["取引先\nコード",null,null,2,3,4,5,6,null,null,null,null,null,null,"年",null,"月",null,"日",null,null,null,null,null,null,null,null,null,null,null,null,null,null,"〒","770-0802"]
[null,null,null,null,null,null,null,null,null,null,null,2,0,1,9,1,1,2,0,null,"種　　別",null,null,"当座",null,"○",null,null,"普通",null,null,null,null,"徳島県徳島市吉野本町６丁目６番地"]
[null,null,null,null,null,null,null,null,null,null,null,"（日付は必ず20日でお願いします）",null,null,null,null,null,null,null,null,"口座番号",null,null,"９９９９９９９",null,null,null,null,null,null,null,null,null,"○○建設株式会社"]
["工事№",null,0,1,"K",0,5,2,"-",1,null,null,null,null,null,null,null,null,null,null,"フリガナ",null,null,"○○ケンセツ（カ　トクシマホンテン"]
[null,null,null,null,null,null,null,null,null,null,null,null,null,null,null,null,null,null,null,null,null,null,null,null,null,null,null,null,null,null,null,null,null,"代表取締役　 ○　○　○　○"]
[null,null,null,null,null,null,null,null,null,null,null,null,null,null,null,null,null,null,null,null,"名　　義",null,null,"○○建設株式会社",null,null,null,null,null,null,null,null,null,null,null,null,null,null,null,null,null,null,null,null,null,"印"]
["工事略称又は",null,null,null,"３１空港護岸Ｋ１",null,null,null,null,null,null,null,null,null,null,null,null,null,null,null,null,null,null,"徳島本店",null,null,null,null,null,null,null,null,null,"電話番号",null,null,"０８８－６２２－２３２３"]
["部門・船舶名",null,null,null,null,null,null,null,null,null,null,null,null,null,null,null,null,null,null,null,null,null,null,null,null,null,null,null,null,null,null,null,null,"登録番号",null,null,"Ｔ",1234567890123]
[]
["契約金額",null,null,null,"(税抜)",null,300000000,null,null,null,null,null,null,null,null,null,null,null,null,null,null,null,null,"前回迄累計額",null,null,null,null,null,"今回計上額",null,null,null,null,null,"累計額",null,null,null,null,null,"残額"]
["消費税（10％対象）",null,null,null,null,null,30000000,null,null,null,null,null,null,null,null,"出来高金額",null,null,null,null,null,null,100000000,null,null,null,null,null,50000000,null,null,null,null,null,150000000,null,null,null,null,null,150000000]
["契約金額",null,null,null,"(税込)",null,330000000,null,null,null,null,null,null,null,"出来高に対する請求額",null,null,null,null,null,null,null,100000000,null,null,null,null,null,50000000,null,null,null,null,null,150000000,null,null,null,null,null,150000000]
[null,null,null,null,null,null,null,null,null,null,null,null,null,null,null,"消費税（10％対象）",null,null,null,null,null,null,10000000,null,null,null,null,null,5000000,null,null,null,null,null,15000000,null,null,null,null,null,15000000]
[null,null,null,null,null,null,null,null,null,null,null,null,null,null,null,"税込請求額",null,null,null,null,null,null,110000000,null,null,null,null,null,55000000,null,null,null,null,null,165000000,null,null,null,null,null,165000000]
[]
[]
["勘 定 科 目",null,null,null,null,null,null,null,null,null,null,"立替先名",null,null,null,"立替金(税込)",null,null,null,null,null,"支払年月日",null,null,null,null,null,null,null,null,null,null,null,null,"＜記事＞"]
[null,null,null,null,null,null,null,null,null,null,null,null,null,null,null,null,null,null,null,null,null,null,null,null,"年",null,"月",null,"日"]
["当月請求額",null,null,null,null,null,null,null,null,null,null,null,null,null,null,null,null,null,null,null,null,2,0]
["前月繰越額"]
["合計",null,null,null,null,null,null,null,null,null,null,null,null,null,null,null,null,null,null,null,null,"支払区分"]
["値引"]
["相殺",null,null,null,null,null,null,null,null,null,null,null,null,null,null,null,null,null,null,null,null,"支　　払　　内　　訳"]
["翌月繰越額",null,null,null,null,null,null,null,null,null,null,null,null,null,null,null,null,null,null,null,null,"現　金",null,null,null,null,"％"]
["支払額",null,null,null,null,null,null,null,null,null,null,null,null,null,null,null,null,null,null,null,null,"手　形",null,null,null,null,"％"]
["安全協力費( )",null,null,null,null,null,null,null,null,null,null,null,null,null,null,null,null,null,null,null,null,"サイト",null,null,null,null,"日","期日"," 　年　　月　　日"]
["差引支払額",null,null,null,null,null,null,null,null,null,null,"計",null,null,null,null,null,null,null,null,null,"合　　計"]
[]
["社　長",null,null,null,"役　　員",null,null,null,null,null,"経理部長",null,null,null,"担当役員",null,null,null,"予算管理",null,null,"部門長",null,null,"担当部長",null,null,"担当課長",null,null,"担 当 者",null,null,null,null,null,null,"仕　訳",null,null,"検　算",null,null,"受　付"]
[]
[]
[]
[]
["コード",null,null,"23456",null,null,null,20191120,null,null,null,null,"01K0521"]

{"sheet":"表紙－入力","index":1,"n_rows":37,"n_cols":46,"rows_kept":37,"cut":false,"hidden":false,"merged":[[36,12,36,15],[2,11,2,18],[6,8,7,8],[6,6,7,6],[6,7,7,7],[6,9,7,9],[19,11,19,14],[9,4,10,18],[3,0,4,1],[9,0,9,3],[10,0,10,3],[6,0,7,1],[6,2,7,2],[21,0,21,3],[22,0,22,3],[36,3,36,6],[36,7,36,10],[12,0,12,3],[19,15,19,19],[19,0,20,3],[14,0,14,3],[14,6,14,12],[19,4,20,9],[3,3,4,3],[31,21,31,23],[29,21,29,26],[31,0,31,2],[31,4,31,8],[13,15,13,20],[28,0,28,3],[31,14,31,16],[31,18,31,20],[31,10,31,12],[29,0,29,3],[29,11,29,14],[24,0,24,3],[25,0,25,3],[26,0,26,3],[27,0,27,3],[13,0,13,5],[28,24,28,25],[28,21,28,23],[31,37,31,39],[31,40,31,42],[31,43,31,45],[15,28,15,33],[16,28,16,33],[8,33,8,44],[16,34,16,39],[14,40,14,45],[15,40,15,45],[31,30,31,32],[28,28,28,32],[25,21,25,32],[26,21,26,23],[27,21,27,23],[23,25,24,28],[26,24,26,25],[31,24,31,26],[31,27,31,29],[8,20,9,22],[15,15,15,20],[16,15,16,20],[14,14,14,21],[16,22,16,27],[15,22,15,27],[3,4,4,4],[3,5,4,5],[3,6,4,6],[3,7,4,7],[6,3,7,3],[6,4,7,4],[6,5,7,5],[23,0,23,3],[2,23,3,25],[6,23,7,31],[8,23,8,31],[9,23,9,31],[2,27,3,30],[4,25,4,26],[4,30,4,31],[2,20,3,22],[9,36,9,45],[12,6,12,12],[13,6,13,12],[13,22,13,27],[13,40,13,45],[5,33,6,45],[3,34,3,37],[3,38,3,45],[4,33,4,45],[2,26,3,26],[2,31,3,31],[4,23,4,24],[4,28,4,29],[4,20,4,22],[5,20,5,22],[12,35,12,38],[12,41,12,44],[12,23,12,26],[12,29,12,32],[5,23,5,31],[16,40,16,45],[15,34,15,39],[14,22,14,27],[13,28,13,33],[14,28,14,33],[13,34,13,39],[14,34,14,39],[27,24,27,25],[7,33,7,45],[6,20,7,22],[19,21,19,28],[23,21,24,24],[10,33,10,35],[9,33,9,35],[10,37,10,45]]}
[null,null,null,"株式会社 セノオ　御中",null,null,null,null,null,null,null,null,null,null,null,null,null,"請　　求　　書",null,null,null,null,null,null,null,null,"（　契　約　用　）",null,null,null,null,null,null,null,null,null,null,null,null,null,null,null,null,null,null,"様式2014.04"]
[]
["下記の通り請求致します。",null,null,null,null,null,null,null,null,null,null,"請 求 年 月 日",null,null,null,null,null,null,null,null,"振込口座",null,null,null,null,null,"銀行",null,null,null,null,"店",null," 請求者（住所・氏名）"]
["取引先\nコード",null,null,null,null,null,null,null,null,null,null,null,null,null,"年",null,"月",null,"日",null,null,null,null,null,null,null,null,null,null,null,null,null,null,"〒"]
[null,null,null,null,null,null,null,null,null,null,null,2,0,null,null,null,null,null,null,null,"種　　別",null,null,"当座",null,null,null,null,"普通"]
[null,null,null,null,null,null,null,null,null,null,null,"（日付は必ず20日でお願いします）",null,null,null,null,null,null,null,null,"口座番号"]
["工事№",null,null,null,null,null,null,null,"－",null,null,null,null,null,null,null,null,null,null,null,"フリガナ"]
[]
[null,null,null,null,null,null,null,null,null,null,null,null,null,null,null,null,null,null,null,null,"名　　義",null,null,null,null,null,null,null,null,null,null,null,null,null,null,null,null,null,null,null,null,null,null,null,null,"印"]
["工事略称又は",null,null,null,null,null,null,null,null,null,null,null,null,null,null,null,null,null,null,null,null,null,null,null,null,null,null,null,null,null,null,null,null," 電話番号"]
["部門・船舶名",null,null,null,null,null,null,null,null,null,null,null,null,null,null,null,null,null,null,null,null,null,null,null,null,null,null,null,null,null,null,null,null," 登録番号",null,null,"T"]
[]
["契約金額",null,null,null,"(税抜)",null,null,null,null,null,null,null,null,null,null,null,null,null,null,null,null,null,null,"前回迄累計額",null,null,null,null,null,"今回計上額",null,null,null,null,null,"累計額",null,null,null,null,null,"残額"]
["消費税（10％対象）",null,null,null,null,null,{"$f":"INT(G13*0.1)","v":0},null,null,null,null,null,null,null,null,"出来高金額",null,null,null,null,null,null,null,null,null,null,null,null,null,null,null,null,null,null,{"$f":"W14+AC14","v":0},null,null,null,null,null,{"$f":"G13-AI14","v":0}]
["契約金額",null,null,null,"(税込)",null,{"$f":"G13+G14","v":0},null,null,null,null,null,null,null,"出来高に対する請求額",null,null,null,null,null,null,null,null,null,null,null,null,null,null,null,null,null,null,null,{"$f":"W15+AC15","v":0},null,null,null,null,null,{"$f":"G13-AI15","v":0}]
[null,null,null,null,null,null,null,null,null,null,null,null,null,null,null,"消費税（10％対象）",null,null,null,null,null,null,{"$f":"INT(W15*0.1)","v":0},null,null,null,null,null,{"$f":"INT(AC15*0.1)","v":0},null,null,null,null,null,{"$f":"W16+AC16","v":0},null,null,null,null,null,{"$f":"G14-AI16","v":0}]
[null,null,null,null,null,null,null,null,null,null,null,null,null,null,null,"税込請求額",null,null,null,null,null,null,{"$f":"W15+W16","v":0},null,null,null,null,null,{"$f":"AC15+AC16","v":0},null,null,null,null,null,{"$f":"W17+AC17","v":0},null,null,null,null,null,{"$f":"G15-AI17","v":0}]
[]
[]
["勘 定 科 目",null,null,null,null,null,null,null,null,null,null,"立替先名",null,null,null,"立替金(税込)",null,null,null,null,null,"支払年月日",null,null,null,null,null,null,null,null,null,null,null,null,"＜記事＞"]
[null,null,null,null,null,null,null,null,null,null,null,null,null,null,null,null,null,null,null,null,null,null,null,null,"年",null,"月",null,"日"]
["当月請求額",null,null,null,null,null,null,null,null,null,null,null,null,null,null,null,null,null,null,null,null,2,0]
["前月繰越額"]
["合計",null,null,null,null,null,null,null,null,null,null,null,null,null,null,null,null,null,null,null,null,"支払区分"]
["値引"]
["相殺",null,null,null,null,null,null,null,null,null,null,null,null,null,null,null,null,null,null,null,null,"支　　払　　内　　訳"]
["翌月繰越額",null,null,null,null,null,null,null,null,null,null,null,null,null,null,null,null,null,null,null,null,"現　金",null,null,null,null,"％"]
["支払額",null,null,null,null,null,null,null,null,null,null,null,null,null,null,null,null,null,null,null,null,"手　形",null,null,null,null,"％"]
["安全協力費( )",null,null,null,null,null,null,null,null,null,null,null,null,null,null,null,null,null,null,null,null,"サイト",null,null,null,null,"日","期日"," 　年　　月　　日"]
["差引支払額",null,null,null,null,null,null,null,null,null,null,"計",null,null,null,null,null,null,null,null,null,"合　　計"]
[]
["社　長",null,null,null,"役　　員",null,null,null,null,null,"経理部長",null,null,null,"担当役員",null,null,null,"予算管理",null,null,"部門長",null,null,"担当部長",null,null,"担当課長",null,null,"担 当 者",null,null,null,null,null,null,"仕　訳",null,null,"検　算",null,null,"受　付"]
[]
[]
[]
[]
["コード",null,null,{"$f":"CONCATENATE(D4,E4,F4,G4,H4,I5,J5)","v":""},null,null,null,{"$f":"CONCATENATE(L5,M5,N5,O5,IF(P5=\"\",0,P5),Q5,R5,S5)","v":"200"},null,null,null,null,{"$f":"CONCATENATE(C7,D7,ASC(UPPER(E7)),F7,G7,H7,J7,L8,M8)","v":""}]

{"sheet":"内訳－入力","index":2,"n_rows":33,"n_cols":46,"rows_kept":33,"cut":false,"hidden":false,"merged":[[28,34,28,39],[8,33,8,35],[9,33,9,35],[9,37,9,45],[32,3,32,6],[32,7,32,10],[32,12,32,15],[29,40,29,45],[29,35,29,38],[29,28,29,33],[29,24,29,27],[25,40,25,45],[26,40,26,45],[27,40,27,45],[28,40,28,45],[25,28,25,33],[27,24,27,27],[28,24,28,27],[28,28,28,33],[26,28,26,33],[27,28,27,33],[29,18,29,21],[25,35,25,38],[26,35,26,38],[27,35,27,38],[27,18,27,21],[28,18,28,21],[12,28,12,33],[13,28,13,33],[14,28,14,33],[15,28,15,33],[26,24,26,27],[19,24,19,27],[20,24,20,27],[21,24,21,27],[22,24,22,27],[23,24,23,27],[16,28,16,33],[17,28,17,33],[23,28,23,33],[24,28,24,33],[18,28,18,33],[19,28,19,33],[20,28,20,33],[21,28,21,33],[22,28,22,33],[15,24,15,27],[16,24,16,27],[17,24,17,27],[18,24,18,27],[24,24,24,27],[25,24,25,27],[12,24,12,27],[13,24,13,27],[14,24,14,27],[12,22,12,23],[13,22,13,23],[14,22,14,23],[15,22,15,23],[16,22,16,23],[17,22,17,23],[29,22,29,23],[22,22,22,23],[23,22,23,23],[26,22,26,23],[18,22,18,23],[19,22,19,23],[20,22,20,23],[21,22,21,23],[27,22,27,23],[28,22,28,23],[24,22,24,23],[25,22,25,23],[1,11,1,18],[2,34,2,37],[7,33,7,44],[11,2,11,17],[8,36,8,45],[2,38,2,45],[3,33,3,45],[4,33,5,45],[6,33,6,45],[5,6,6,6],[5,7,6,7],[5,9,6,9],[8,4,9,18],[8,0,8,3],[9,0,9,3],[11,28,11,33],[11,24,11,27],[11,22,11,23],[11,18,11,21],[2,0,3,1],[5,0,6,1],[5,8,6,8],[2,3,3,3],[2,4,3,4],[2,5,3,5],[2,6,3,6],[2,7,3,7],[5,2,6,2],[5,4,6,4],[5,5,6,5],[5,3,6,3],[15,18,15,21],[16,18,16,21],[17,18,17,21],[12,18,12,21],[13,18,13,21],[14,18,14,21],[18,18,18,21],[25,18,25,21],[26,18,26,21],[19,18,19,21],[20,18,20,21],[21,18,21,21],[23,18,23,21],[24,18,24,21],[22,18,22,21]]}
[null,null,null,null,null,null,null,null,null,null,null,null,null,null,null,null,null,null,null,null,"請　求　内　訳　書",null,null,null,null,null,null,null,null,null,null,null,null,null,null,null,null,null,null,null,null,null,null,null,null,{"$f":"'表紙－入力'!AT1","v":"様式2014.04"}]
[null,null,null,null,null,null,null,null,null,null,null,"請 求 年 月 日",null,null,null,null,null,null,null,null,null,null,null,null,null,null,null,null,null,null,null,null,null," 請求者（住所・氏名）"]
["取引先\nコード",null,null,{"$f":"'表紙－入力'!$D$4","v":0},{"$f":"'表紙－入力'!$E$4","v":0},{"$f":"'表紙－入力'!$F$4","v":0},{"$f":"'表紙－入力'!$G$4","v":0},{"$f":"'表紙－入力'!$H$4","v":0},null,null,null,null,null,null,"年",null,"月",null,"日",null,null,null,null,null,null,null,null,null,null,null,null,null,null,"〒"]
[null,null,null,null,null,null,null,null,null,null,null,2,0,{"$f":"'表紙－入力'!$N$5","v":0},{"$f":"'表紙－入力'!$O$5","v":0},{"$f":"'表紙－入力'!$P$5","v":0},{"$f":"'表紙－入力'!$Q$5","v":0},{"$f":"'表紙－入力'!$R$5","v":0},{"$f":"'表紙－入力'!$S$5","v":0}]
[]
["工事№",null,{"$f":"IF(ISBLANK('表紙－入力'!C$7),\"\",'表紙－入力'!C$7)","v":""},{"$f":"IF(ISBLANK('表紙－入力'!D$7),\"\",'表紙－入力'!D$7)","v":""},{"$f":"IF(ISBLANK('表紙－入力'!E$7),\"\",'表紙－入力'!E$7)","v":""},{"$f":"IF(ISBLANK('表紙－入力'!F$7),\"\",'表紙－入力'!F$7)","v":""},{"$f":"IF(ISBLANK('表紙－入力'!G$7),\"\",'表紙－入力'!G$7)","v":""},{"$f":"IF(ISBLANK('表紙－入力'!H$7),\"\",'表紙－入力'!H$7)","v":""},"－",{"$f":"'表紙－入力'!J$7","v":0}]
[null,null,null,null,null,null,null,null,null,null,null,{"$f":"IF(ISBLANK('表紙－入力'!L8),\"\",'表紙－入力'!L8)","v":""},{"$f":"IF(ISBLANK('表紙－入力'!M8),\"\",'表紙－入力'!M8)","v":""}]
[]
["工事略称又は",null,null,null,{"$f":"'表紙－入力'!$E$10","v":0},null,null,null,null,null,null,null,null,null,null,null,null,null,null,null,null,null,null,null,null,null,null,null,null,null,null,null,null,"電話番号"]
["部門・船舶名",null,null,null,null,null,null,null,null,null,null,null,null,null,null,null,null,null,null,null,null,null,null,null,null,null,null,null,null,null,null,null,null,"登録番号",null,null,"Ｔ"]
[]
["月","日","主 要 工 種 ・ 品 名 等",null,null,null,null,null,null,null,null,null,null,null,null,null,null,null,"数　量",null,null,null,"単位",null,"単　価",null,null,null,"金　　額"]
[null,null,null,null,null,null,null,null,null,null,null,null,null,null,null,null,null,null,null,null,null,null,null,null,null,null,null,null,{"$f":"INT(S13*Y13)","v":0}]
[null,null,null,null,null,null,null,null,null,null,null,null,null,null,null,null,null,null,null,null,null,null,null,null,null,null,null,null,{"$f":"INT(S14*Y14)","v":0}]
[null,null,null,null,null,null,null,null,null,null,null,null,null,null,null,null,null,null,null,null,null,null,null,null,null,null,null,null,0]
[null,null,null,null,null,null,null,null,null,null,null,null,null,null,null,null,null,null,null,null,null,null,null,null,null,null,null,null,0]
[null,null,null,null,null,null,null,null,null,null,null,null,null,null,null,null,null,null,null,null,null,null,null,null,null,null,null,null,0]
[null,null,null,null,null,null,null,null,null,null,null,null,null,null,null,null,null,null,null,null,null,null,null,null,null,null,null,null,0]
[null,null,null,null,null,null,null,null,null,null,null,null,null,null,null,null,null,null,null,null,null,null,null,null,null,null,null,null,0]
[null,null,null,null,null,null,null,null,null,null,null,null,null,null,null,null,null,null,null,null,null,null,null,null,null,null,null,null,0]
[null,null,null,null,null,null,null,null,null,null,null,null,null,null,null,null,null,null,null,null,null,null,null,null,null,null,null,null,0]
[null,null,null,null,null,null,null,null,null,null,null,null,null,null,null,null,null,null,null,null,null,null,null,null,null,null,null,null,0]
[null,null,null,null,null,null,null,null,null,null,null,null,null,null,null,null,null,null,null,null,null,null,null,null,null,null,null,null,0]
[null,null,null,null,null,null,null,null,null,null,null,null,null,null,null,null,null,null,null,null,null,null,null,null,null,null,null,null,0]
[null,null,null,null,null,null,null,null,null,null,null,null,null,null,null,null,null,null,null,null,null,null,null,null,null,null,null,null,0]
[null,null,null,null,null,null,null,null,null,null,null,null,null,null,null,null,null,null,null,null,null,null,null,null,null,null,null,null,0,null,null,null,null,null,null,"税抜き小計",null,null,null,null,{"$f":"SUM(AC13:AH30)","v":0}]
[null,null,null,null,null,null,null,null,null,null,null,null,null,null,null,null,null,null,null,null,null,null,null,null,null,null,null,null,0,null,null,null,null,null,null,"値引"]
[null,null,null,null,null,null,null,null,null,null,null,null,null,null,null,null,null,null,null,null,null,null,null,null,null,null,null,null,0,null,null,null,null,null,null,"税抜き額",null,null,null,null,{"$f":"AO26-AO27","v":0}]
[null,null,null,null,null,null,null,null,null,null,null,null,null,null,null,null,null,null,null,null,null,null,null,null,null,null,null,null,0,null,null,null,null,null,"消費税(10％対象)",null,null,null,null,null,{"$f":"INT(AO28*0.1)","v":0}]
[null,null,null,null,null,null,null,null,null,null,null,null,null,null,null,null,null,null,null,null,null,null,null,null,null,null,null,null,{"$f":"INT(S30*Y30)","v":0},null,null,null,null,null,null,"合計",null,null,null,null,{"$f":"AO28+AO29","v":0}]
[]
[null,null,null,null,null,null,null,null,null,null,null,null,null,null,null,null,null,null,null,null,null,null,"株式会社  セ ノ オ"]
["コード",null,null,{"$f":"CONCATENATE(D3,E3,F3,G3,H3,I4,J4)","v":"00000"},null,null,null,{"$f":"CONCATENATE(L4,M4,N4,O4,IF(P4=\"\",0,P4),Q4,R4,S4)","v":"20000000"},null,null,null,null,{"$f":"CONCATENATE(C6,D6,ASC(UPPER(E6)),F6,G6,H6,J6,L7,M7)","v":"0"}]

{"sheet":"表紙－手書き用","index":3,"n_rows":37,"n_cols":46,"rows_kept":37,"cut":false,"hidden":false,"merged":[[31,30,31,32],[12,29,12,32],[28,28,28,32],[12,23,12,26],[19,21,19,28],[23,21,24,24],[25,21,25,32],[26,21,26,23],[27,21,27,23],[28,21,28,23],[29,21,29,26],[31,37,31,39],[31,40,31,42],[31,43,31,45],[12,35,12,38],[12,41,12,44],[8,23,8,31],[31,10,31,12],[31,14,31,16],[31,18,31,20],[31,21,31,23],[14,14,14,21],[15,15,15,20],[8,20,9,22],[29,11,29,14],[19,11,19,14],[19,15,19,19],[16,15,16,20],[13,15,13,20],[31,24,31,26],[31,27,31,29],[9,23,9,31],[31,0,31,2],[31,4,31,8],[14,0,14,3],[28,0,28,3],[23,0,23,3],[25,0,25,3],[26,0,26,3],[27,0,27,3],[29,0,29,3],[9,0,9,3],[10,0,10,3],[19,0,20,3],[21,0,21,3],[24,0,24,3],[12,0,12,3],[22,0,22,3],[13,0,13,5],[6,8,7,8],[4,25,4,26],[4,30,4,31],[4,23,4,24],[3,0,4,1],[3,3,4,3],[3,4,4,4],[3,5,4,5],[3,6,4,6],[3,7,4,7],[6,0,7,1],[4,20,4,22],[5,20,5,22],[5,23,5,31],[6,20,7,22],[6,23,7,31],[4,28,4,29],[2,11,2,18],[2,20,3,22],[2,26,3,26],[2,31,3,31],[2,23,3,25],[2,27,3,30],[9,33,9,35],[10,33,10,35],[10,37,10,45],[3,34,3,37],[3,38,3,45],[4,33,4,45],[5,33,6,45],[7,33,7,45],[8,33,8,44],[9,36,9,45]]}
[null,null,null,"株式会社 セノオ　御中",null,null,null,null,null,null,null,null,null,null,null,null,null,"請　　求　　書",null,null,null,null,null,null,null,null,"（　契　約　用　）",null,null,null,null,null,null,null,null,null,null,null,null,null,null,null,null,null,null,{"$f":"'表紙－入力'!AT1","v":"様式2014.04"}]
[]
["下記の通り請求致します。",null,null,null,null,null,null,null,null,null,null,"請 求 年 月 日",null,null,null,null,null,null,null,null,"振込口座",null,null,null,null,null,"銀行",null,null,null,null,"店",null," 請求者（住所・氏名）"]
["取引先\nコード",null,null,null,null,null,null,null,null,null,null,null,null,null,"年",null,"月",null,"日",null,null,null,null,null,null,null,null,null,null,null,null,null,null,"〒"]
[null,null,null,null,null,null,null,null,null,null,null,2,0,null,null,null,null,null,null,null,"種　　別",null,null,"当座",null,null,null,null,"普通"]
[null,null,null,null,null,null,null,null,null,null,null,"（日付は必ず20日でお願いします）",null,null,null,null,null,null,null,null,"口座番号"]
["工事№",null,null,null,null,null,null,null,"－",null,null,null,null,null,null,null,null,null,null,null,"フリガナ"]
[]
[null,null,null,null,null,null,null,null,null,null,null,null,null,null,null,null,null,null,null,null,"名　　義",null,null,null,null,null,null,null,null,null,null,null,null,null,null,null,null,null,null,null,null,null,null,null,null,"印"]
["工事略称又は",null,null,null,null,null,null,null,null,null,null,null,null,null,null,null,null,null,null,null,null,null,null,null,null,null,null,null,null,null,null,null,null," 電話番号"]
["部門・船舶名",null,null,null,null,null,null,null,null,null,null,null,null,null,null,null,null,null,null,null,null,null,null,null,null,null,null,null,null,null,null,null,null," 登録番号",null,null,"T"]
[]
["契約金額",null,null,null,"(税抜)",null,null,null,null,null,null,null,null,null,null,null,null,null,null,null,null,null,null,"前回迄累計額",null,null,null,null,null,"今回計上額",null,null,null,null,null,"累計額",null,null,null,null,null,"残額"]
["消費税（10％対象）",null,null,null,null,null,null,null,null,null,null,null,null,null,null,"出来高金額"]
["契約金額",null,null,null,"(税込)",null,null,null,null,null,null,null,null,null,"出来高に対する請求額"]
[null,null,null,null,null,null,null,null,null,null,null,null,null,null,null,"消費税（10％対象）"]
[null,null,null,null,null,null,null,null,null,null,null,null,null,null,null,"税込請求額"]
[]
[]
["勘 定 科 目",null,null,null,null,null,null,null,null,null,null,"立替先名",null,null,null,"立替金(税込)",null,null,null,null,null,"支払年月日",null,null,null,null,null,null,null,null,null,null,null,null,"＜記事＞"]
[null,null,null,null,null,null,null,null,null,null,null,null,null,null,null,null,null,null,null,null,null,null,null,null,"年",null,"月",null,"日"]
["当月請求額",null,null,null,null,null,null,null,null,null,null,null,null,null,null,null,null,null,null,null,null,2,0]
["前月繰越額"]
["合計",null,null,null,null,null,null,null,null,null,null,null,null,null,null,null,null,null,null,null,null,"支払区分"]
["値引"]
["相殺",null,null,null,null,null,null,null,null,null,null,null,null,null,null,null,null,null,null,null,null,"支　　払　　内　　訳"]
["翌月繰越額",null,null,null,null,null,null,null,null,null,null,null,null,null,null,null,null,null,null,null,null,"現　金",null,null,null,null,"％"]
["支払額",null,null,null,null,null,null,null,null,null,null,null,null,null,null,null,null,null,null,null,null,"手　形",null,null,null,null,"％"]
["安全協力費( )",null,null,null,null,null,null,null,null,null,null,null,null,null,null,null,null,null,null,null,null,"サイト",null,null,null,null,"日","期日"," 　年　　月　　日"]
["差引支払額",null,null,null,null,null,null,null,null,null,null,"計",null,null,null,null,null,null,null,null,null,"合　　計"]
[]
["社　長",null,null,null,"役　　員",null,null,null,null,null,"経理部長",null,null,null,"担当役員",null,null,null,"予算管理",null,null,"部門長",null,null,"担当部長",null,null,"担当課長",null,null,"担 当 者",null,null,null,null,null,null,"仕　訳",null,null,"検　算",null,null,"受　付"]
[]
[]
[]
[]
["コード"]

{"sheet":"内訳－手書き用","index":4,"n_rows":33,"n_cols":46,"rows_kept":33,"cut":false,"hidden":false,"merged":[[11,28,11,33],[11,24,11,27],[11,22,11,23],[29,35,29,38],[25,35,25,38],[26,35,26,38],[27,35,27,38],[28,34,28,39],[11,18,11,21],[11,2,11,17],[1,11,1,18],[2,0,3,1],[5,0,6,1],[5,8,6,8],[2,3,3,3],[2,4,3,4],[2,5,3,5],[2,6,3,6],[8,0,8,3],[9,0,9,3],[2,7,3,7],[2,34,2,37],[2,38,2,45],[3,33,3,45],[4,33,5,45],[8,33,8,35],[9,33,9,35],[9,37,9,45],[6,33,6,45],[7,33,7,44],[8,36,8,45]]}
[null,null,null,null,null,null,null,null,null,null,null,null,null,null,null,null,null,null,null,null,"請　求　内　訳　書",null,null,null,null,null,null,null,null,null,null,null,null,null,null,null,null,null,null,null,null,null,null,null,null,{"$f":"'表紙－入力'!AT1","v":"様式2014.04"}]
[null,null,null,null,null,null,null,null,null,null,null,"請 求 年 月 日",null,null,null,null,null,null,null,null,null,null,null,null,null,null,null,null,null,null,null,null,null," 請求者（住所・氏名）"]
["取引先\nコード",null,null,null,null,null,null,null,null,null,null,null,null,null,"年",null,"月",null,"日",null,null,null,null,null,null,null,null,null,null,null,null,null,null,"〒"]
[null,null,null,null,null,null,null,null,null,null,null,2,0]
[]
["工事№",null,null,null,null,null,null,null,"－"]
[]
[]
["工事略称又は",null,null,null,null,null,null,null,null,null,null,null,null,null,null,null,null,null,null,null,null,null,null,null,null,null,null,null,null,null,null,null,null,"電話番号"]
["部門・船舶名",null,null,null,null,null,null,null,null,null,null,null,null,null,null,null,null,null,null,null,null,null,null,null,null,null,null,null,null,null,null,null,null,"登録番号",null,null,"Ｔ"]
[]
["月","日","主 要 工 種 ・ 品 名 等",null,null,null,null,null,null,null,null,null,null,null,null,null,null,null,"数　量",null,null,null,"単位",null,"単　価",null,null,null,"金　　額"]
[]
[]
[]
[]
[]
[]
[]
[]
[]
[]
[]
[]
[]
[null,null,null,null,null,null,null,null,null,null,null,null,null,null,null,null,null,null,null,null,null,null,null,null,null,null,null,null,null,null,null,null,null,null,null,"税抜き小計"]
[null,null,null,null,null,null,null,null,null,null,null,null,null,null,null,null,null,null,null,null,null,null,null,null,null,null,null,null,null,null,null,null,null,null,null,"値引"]
[null,null,null,null,null,null,null,null,null,null,null,null,null,null,null,null,null,null,null,null,null,null,null,null,null,null,null,null,null,null,null,null,null,null,null,"税抜き額"]
[null,null,null,null,null,null,null,null,null,null,null,null,null,null,null,null,null,null,null,null,null,null,null,null,null,null,null,null,null,null,null,null,null,null,"消費税(10％対象)"]
[null,null,null,null,null,null,null,null,null,null,null,null,null,null,null,null,null,null,null,null,null,null,null,null,null,null,null,null,null,null,null,null,null,null,null,"合計"]
[]
[null,null,null,null,null,null,null,null,null,null,null,null,null,null,null,null,null,null,null,null,null,null,"株式会社  セ ノ オ"]
["コード"]